Cogmind - Beta 12 @@@ ROGUE MODE // 2024.02.03 @ 00:30:19 // Winter2019/RPGLIKE Player: Luminiferous Result: Core destroyed Performance ------------- Evolutions (2) 1000 Regions Visited (7) 1400 Robots Destroyed (73) 365 Value Destroyed (1470) 1470 Prototype IDs (25) 500 Alien Tech Used (0) 0 Bonus (352) 352 TOTAL SCORE: 5087 Bonus ------- High Alert Combat Kills 52 Aligned with FarCom 300 Cogmind --------- Core Integrity 0/1000 Matter 0/300 Energy 220/220 System Corruption 0% Temperature Critical (629) Movement Hovering (52) Location -8/Materials Parts ------- > --- POWER (2) -------- Light Nuclear Core Light Nuclear Core > --- PROPULSION (4) --- Improved Hover Unit Improved Hover Unit Improved Hover Unit > --- UTILITY (5) ------ Structural Scanner Improved Signal Interpreter Transport Network Coupler Improved Light Armor Plating > --- WEAPON (2) ------- Enhanced Autogun Light Cannon > --- INVENTORY (4) ---- Cesium-ion Thruster Chronowheel Mini Grenade Launcher Axe Peak State ------------ > --- POWER ------------ Light Nuclear Core Light Nuclear Core > --- PROPULSION ------- Improved Hover Unit Improved Hover Unit Improved Hover Unit > --- UTILITY ---------- Advanced Weight Redist. System Structural Scanner Improved Signal Interpreter Transport Network Coupler Improved Light Armor Plating > --- WEAPON ----------- Enhanced Autogun Light Cannon > --- INVENTORY -------- Cesium-ion Thruster Chronowheel Mini Grenade Launcher Axe [Rating: 30] Favorites ----------- Power Improved Ion Engine Engine Improved Ion Engine Power Core Light Nuclear Core Propulsion Improved Hover Unit Leg Aluminum Leg Wheel Wheel Hover Unit Improved Hover Unit Utility Transport Network Coupler Device Structural Scanner Storage Compact Battery Processor Transport Network Coupler Protection Light Armor Plating Weapon Light Cannon Energy Gun Medium Laser Ballistic Gun Enhanced Autogun Ballistic Cannon Light Cannon Launcher Mini Grenade Launcher Build | -11 -10 -10 -9 -9 -9 -8 -8 ------- Run | Jun Mat Min Mat Min Exi Min Mat Slots Evolved 9 | 3 . 1 3 1 . . 1 Power 1 | . . . . 1 . . . Propulsion 3 | 1 . . 1 . . . 1 Utility 4 | 1 . 1 2 . . . . Weapon 1 | 1 . . . . . . . Parts Attached 45 | 2 7 3 17 3 . 4 9 Power 7 | . 1 1 1 1 . 1 2 Engine 5 | . 1 1 1 1 . 1 . Core 2 | . . . . . . . 2 Reactor . | . . . . . . . . Propulsion 5 | 2 . . 3 . . . . Treads . | . . . . . . . . Leg . | . . . . . . . . Wheel 2 | 2 . . . . . . . Hover 3 | . . . 3 . . . . Flight . | . . . . . . . . Utility 12 | . 3 1 6 . . 1 1 Device 4 | . . . 4 . . . . Storage 1 | . . . 1 . . . . Processor 3 | . 2 . . . . 1 . Hackware . | . . . . . . . . Protection 4 | . 1 1 1 . . . 1 Artifact . | . . . . . . . . Weapon 21 | . 3 1 7 2 . 2 6 Energy Gun 1 | . 1 . . . . . . Energy Cannon . | . . . . . . . . Ballistic Gun 1 | . . . . . . . 1 Ballistic Cannon 11 | . 2 . 4 1 . 1 3 Launcher 8 | . . 1 3 1 . 1 2 Special Weapon . | . . . . . . . . Impact Weapon . | . . . . . . . . Slashing Weapon . | . . . . . . . . Piercing Weapon . | . . . . . . . . Special Melee Weapon . | . . . . . . . . Unidentified Prototypes 2 | . . . . . . . 2 Parts Lost 1 | . . . 1 . . . . Power . | . . . . . . . . Propulsion . | . . . . . . . . Utility 1 | . . . 1 . . . . Weapon . | . . . . . . . . Highest Loss Streak 1 | . . . 1 . . . . To Critical Strikes . | . . . . . . . . Average Slot Usage (%) 92 | . 86 100 92 99 100 100 88 Engine 10 | . 14 13 9 13 16 16 . Core 2 | . . . . . . . 15 Wheel 14 | . 28 27 17 . . . . Hover 10 | . . . 2 25 25 25 23 Device 12 | . . . 20 25 25 25 12 Processor 16 | . 13 27 18 16 16 16 15 Protection 3 | . 4 4 5 . . . 6 Ballistic Cannon 17 | . 21 24 16 16 16 15 11 Naked Turns . | . . . . . . . . Heaviest Build 23 | 7 14 13 18 23 23 23 20 Greatest Support 35 | 26 26 26 35 30 30 30 30 Greatest Overweight (x) 1 | . . . . . . . 1 Average Overweight (x) . | . . . . . . . . Largest Inventory Capacity 4 | 3 3 3 3 3 3 4 4 Average Capacity 3 | 3 3 3 3 3 3 3 4 Most Carried 4 | 2 3 3 3 3 3 4 4 Average Carried 2 | 1 2 2 2 2 2 3 4 Final Capacity 4 | 3 3 3 3 3 3 4 4 Final Carried 4 | 2 3 3 2 2 3 4 4 Class Distribution -------------------- 61% | Mutant 19% | Scout 10% | Scavenger-Mutant 5% | Skirmisher 3% | Scavenger-Scout Dominant Class ---------------- Mutant | -10/Materials Mutant | -10/Mines Mutant | -9/Materials Scavenger-Mutant | -9/Mines Scavenger-Mutant | -9/Exiles Scout | -8/Mines Scout | -8/Materials Resources | -11 -10 -10 -9 -9 -9 -8 -8 ----------- Run | Jun Mat Min Mat Min Exi Min Mat Matter Collected 1624 | 200 346 144 574 58 . 98 204 Remotely . | . . . . . . . . Salvage Created 1391 | . 429 113 593 67 . 25 164 Parts 120 | . 27 14 56 5 . 7 11 Haulers Intercepted 7 | . 2 . 3 . . . 2 Recyclers Shooed 4 | . 3 1 . . . . . Parts Field Recycled . | . . . . . . . . Retrieved Matter . | . . . . . . . . Parts Self-Destructed . | . . . . . . . . Prevented . | . . . . . . . . Kills | -11 -10 -10 -9 -9 -9 -8 -8 ------- Run | Jun Mat Min Mat Min Exi Min Mat Combat Hostiles Destroyed 54 | . 13 8 20 3 . 5 5 Guns 2 | . 2 . . . . . . Cannons 35 | . 10 6 11 2 . 3 3 AOE 16 | . . 2 9 1 . 2 2 Classes Destroyed 11 | . 6 1 2 1 . 1 . Worker 5 | . . 1 3 . . . 1 Tunneler 1 | . . . 1 . . . . Hauler 7 | . 2 . 3 . . . 2 Recycler 3 | . 2 1 . . . . . Operator 1 | . 1 . . . . . . Watcher 2 | . 1 . 1 . . . . Swarmer 28 | . 6 8 10 . . 4 . Grunt 19 | . 7 . 7 2 . . 3 Duelist 1 | . . . . 1 . . . Sentry 4 | . . . 3 . . . 1 Hunter 2 | . . . . . . 1 1 Best Kill Streak 6 | . 4 3 6 3 . 3 3 Combat Bots Only 4 | . 3 3 4 3 . 3 2 Max Kills in Single Turn 4 | . 1 2 4 2 . 2 2 Gunslinging . | . . . . . . . . Exploded 3 | . . 2 3 1 . 2 1 Melee . | . . . . . . . . Uniques/NPCs Destroyed . | . . . . . . . . Combat | -11 -10 -10 -9 -9 -9 -8 -8 -------- Run | Jun Mat Min Mat Min Exi Min Mat Damage Taken 2420 | . 376 187 825 63 . 129 840 Core 1891 | . 311 157 621 49 . 103 650 Absorbed by Shields 141 | . . . 69 23 . 49 . Redirected to Core 1202 | . 206 95 429 40 . 68 364 Core Remaining (%) 73 | 100 . 76 . . . 44 . Volleys Fired 169 | 1 60 19 41 4 . 13 31 Largest 2 | 1 2 2 2 2 . 2 2 Hottest 70 | 50 70 70 70 70 . 70 70 Shots Fired 304 | 1 92 35 82 8 . 25 61 Gun 45 | 1 28 . . . . . 16 Cannon 245 | . 64 34 74 7 . 24 42 Launcher 14 | . . 1 8 1 . 1 3 Special . | . . . . . . . . Kinetic 261 | . 64 34 74 7 . 24 58 Thermal 29 | 1 28 . . . . . . Explosive 14 | . . 1 8 1 . 1 3 Electromagnetic . | . . . . . . . . Robot Hit Streak 15 | 1 10 5 12 2 . 3 15 Robot Miss Streak 7 | . 7 5 3 1 . 2 3 Penetration Max . | . . . . . . . . Secondary Targets . | . . . . . . . . Shots Hit Robots 172 | 1 56 18 45 5 . 12 35 Core Hits 92 | . 24 10 32 4 . 7 15 Critical Kills . | . . . . . . . . Critical Parts Destroyed . | . . . . . . . . Critical Strikes 15 | 1 7 . 2 . . 1 4 Burn 6 | 1 5 . . . . . . Blast 9 | . 2 . 2 . . 1 4 Melee Attacks . | . . . . . . . . Impact . | . . . . . . . . Slashing . | . . . . . . . . Piercing . | . . . . . . . . Sneak Attacks . | . . . . . . . . Combat Hostiles . | . . . . . . . . Follow-up Attacks . | . . . . . . . . Damage Inflicted 4227 | 12 900 490 1392 148 . 336 949 Guns 421 | 12 277 . . . . . 132 Cannons 2537 | . 623 345 824 90 . 181 474 Explosions 1269 | . . 145 568 58 . 155 343 Melee . | . . . . . . . . Ramming . | . . . . . . . . Kinetic 2669 | . 623 345 824 90 . 181 606 Thermal 289 | 12 277 . . . . . . Explosive 1269 | . . 145 568 58 . 155 343 Electromagnetic . | . . . . . . . . Impact . | . . . . . . . . Slashing . | . . . . . . . . Piercing . | . . . . . . . . Highest Corruption . | . . . . . . . . Average Corruption . | . . . . . . . . Corruption Purged . | . . . . . . . . Corruption Blocked . | . . . . . . . . Overload Shots . | . . . . . . . . Overflow Damage 86 | . . 12 66 . . . 8 Projectiles 23 | . . 12 3 . . . 8 Explosions 63 | . . . 63 . . . . Melee . | . . . . . . . . Knockbacks 26 | . 8 2 6 3 . 5 2 Impact . | . . . . . . . . Kinetic 24 | . 7 2 5 3 . 5 2 Secondary 2 | . 1 . 1 . . . . Self-Inflicted Damage 52 | . . . 22 30 . . . Shots 2 | . . . 1 1 . . . Rammed . | . . . . . . . . Targets Rammed . | . . . . . . . . Kicked . | . . . . . . . . Crushed . | . . . . . . . . Highest Temperature 629 | 10 305 110 159 78 . 347 629 Average Temperature 124 | 7 61 45 43 37 . 123 248 Received Heat Transfer 581 | . 153 . 219 20 . . 189 Effects 40 | . . . . . . 4 36 Shutdowns 12 | . . . . . . 1 11 Energy Bleed 4 | . . . . . . . 4 Interference 6 | . . . . . . 3 3 Matter Decay 3 | . . . . . . . 3 Short Circuit 1 | . . . . . . . 1 Damage (minor) 2 | . . . . . . . 2 Damage (major) 10 | . . . . . . . 10 Damage (core) 2 | . . . . . . . 2 Siege Activations . | . . . . . . . . Robots Corrupted . | . . . . . . . . Combat Hostiles . | . . . . . . . . Parts Fried . | . . . . . . . . Impact Corruptions . | . . . . . . . . Robots Melted 1 | . 1 . . . . . . Combat Hostiles 1 | . 1 . . . . . . Parts Melted 3 | . 3 . . . . . . Heat Transferred 1295 | 111 1184 . . . . . . Parts Sabotaged . | . . . . . . . . Parts Stolen . | . . . . . . . . Parts Stripped . | . . . . . . . . Power Chain Reactions . | . . . . . . . . Missiles Intercepted . | . . . . . . . . Alert | -11 -10 -10 -9 -9 -9 -8 -8 ------- Run | Jun Mat Min Mat Min Exi Min Mat Peak Influence 604 | . 271 311 604 327 . 157 261 Initial 235 | . . 75 120 235 . . 61 Average 192 | . 138 197 323 324 . 58 136 Maximum Alert Level 2 | . 1 1 2 1 . . 1 Low Security (%) 66 | 100 86 45 35 . . 100 91 Level 1 25 | . 13 54 31 100 . . 8 Level 2 8 | . . . 32 . . . . Level 3 . | . . . . . . . . Level 4 . | . . . . . . . . Level 5 . | . . . . . . . . High Security . | . . . . . . . . Max Security . | . . . . . . . . Squads Dispatched 4 | . 2 . . . . . 2 Investigation 1 | . . . . . . . 1 Extermination . | . . . . . . . . Reinforcement 3 | . 2 . . . . . 1 Assault . | . . . . . . . . Garrison . | . . . . . . . . Intercept . | . . . . . . . . Searches Triggered . | . . . . . . . . Construction Impeded . | . . . . . . . . Haulers Reinforced . | . . . . . . . . Active Scanning Responses . | . . . . . . . . Cargo Convoy Interrupts . | . . . . . . . . Stealth | -11 -10 -10 -9 -9 -9 -8 -8 --------- Run | Jun Mat Min Mat Min Exi Min Mat Distress Signals 6 | . 1 . 4 . . . 1 Communications Jammed . | . . . . . . . . Distress Signals . | . . . . . . . . Times Spotted 66 | . 20 9 21 3 . 6 7 Peak Tracking Total 5 | . 4 3 5 3 . 4 3 Tactical Retreats 3 | . . 1 1 . . 1 . Traps | -11 -10 -10 -9 -9 -9 -8 -8 ------- Run | Jun Mat Min Mat Min Exi Min Mat Traps Triggered . | . . . . . . . . Indirectly . | . . . . . . . . Trap Hack Attempts . | . . . . . . . . Triggered . | . . . . . . . . Disarmed . | . . . . . . . . Reprogrammed . | . . . . . . . . Reused . | . . . . . . . . Traps Extracted . | . . . . . . . . Installed . | . . . . . . . . Triggered . | . . . . . . . . Machines | -11 -10 -10 -9 -9 -9 -8 -8 ---------- Run | Jun Mat Min Mat Min Exi Min Mat Machines Disabled 5 | . 1 1 1 1 . 1 . Max in Single Turn 1 | . 1 1 1 1 . 1 . Machines Repaired . | . . . . . . . . Machines Sabotaged . | . . . . . . . . Overloaded Fab Kills . | . . . . . . . . Hacking | -11 -10 -10 -9 -9 -9 -8 -8 --------- Run | Jun Mat Min Mat Min Exi Min Mat Machines Accessed 8 | . 2 1 3 . 1 . 1 Terminals 7 | . 2 1 3 . . . 1 Fabricators . | . . . . . . . . Repair Stations . | . . . . . . . . Recycling Units . | . . . . . . . . Scanalyzers . | . . . . . . . . Garrison Access . | . . . . . . . . Total Hacks 17 | . 3 1 8 . 1 . 4 Successful 8 | . 3 . 4 . 1 . . Failed 9 | . . 1 4 . . . 4 Catastrophic 3 | . . 1 2 . . . . Database Lockouts . | . . . . . . . . Manual 17 | . 4 1 7 . 1 . 4 Terminals 16 | . 3 1 8 . . . 4 Fabricators . | . . . . . . . . Repair Stations . | . . . . . . . . Recycling Units . | . . . . . . . . Scanalyzers . | . . . . . . . . Garrison Access . | . . . . . . . . Terminal Hacks 8 | . 3 . 4 . 1 . . Robot Analysis 1 | . . . 1 . . . . Branch Access Points 1 | . . . 1 . . . . Terminal Index 2 | . 1 . 1 . . . . Unreport Threat 1 | . 1 . . . . . . Hauler Manifests 2 | . 1 . 1 . . . . EX-Prototype ID Bank 1 | . . . . . 1 . . Fabricator Hacks . | . . . . . . . . Repair Station Hacks . | . . . . . . . . Recycling Unit Hacks . | . . . . . . . . Scanalyzer . | . . . . . . . . Garrison Access Hacks . | . . . . . . . . Unauthorized Hacks . | . . . . . . . . Terminals . | . . . . . . . . Fabricators . | . . . . . . . . Repair Stations . | . . . . . . . . Recycling Units . | . . . . . . . . Scanalyzers . | . . . . . . . . Garrison Access . | . . . . . . . . Data Cores Recovered . | . . . . . . . . Used . | . . . . . . . . Hacking Detections 7 | . 2 1 3 . . . 1 Full Trace Events 1 | . . . . . . . 1 Feedback Events . | . . . . . . . . Feedback Blocked . | . . . . . . . . Robot Schematics Acquired . | . . . . . . . . Robots Built . | . . . . . . . . Authchips . | . . . . . . . . Time . | . . . . . . . . Total Robot Build Rating . | . . . . . . . . Part Schematics Acquired . | . . . . . . . . Parts Built . | . . . . . . . . Authchips . | . . . . . . . . Time . | . . . . . . . . Total Part Build Rating . | . . . . . . . . Parts Repaired . | . . . . . . . . Time . | . . . . . . . . Parts Recycled . | . . . . . . . . Recycled Matter . | . . . . . . . . Retrieved Matter . | . . . . . . . . Retrieved Components . | . . . . . . . . Parts Scanalyzed . | . . . . . . . . Part Schematics Acquired . | . . . . . . . . Parts Damaged . | . . . . . . . . Bothacking | -11 -10 -10 -9 -9 -9 -8 -8 ------------ Run | Jun Mat Min Mat Min Exi Min Mat Used RIF Installer . | . . . . . . . . Robots Hacked . | . . . . . . . . Non-combat . | . . . . . . . . Combat . | . . . . . . . . Robot Hacks Applied . | . . . . . . . . Relay Couplers Released . | . . . . . . . . Fabnet Peak Effective % . | . . . . . . . . Robots Rewired . | . . . . . . . . Allies Hacked . | . . . . . . . . Hacks Repelled . | . . . . . . . . Allies | -11 -10 -10 -9 -9 -9 -8 -8 -------- Run | Jun Mat Min Mat Min Exi Min Mat Total Allies . | . . . . . . . . Largest Group . | . . . . . . . . Highest-Rated Group . | . . . . . . . . Highest-Rated Ally . | . . . . . . . . Total Orders . | . . . . . . . . Ally Attacks . | . . . . . . . . Total Damage . | . . . . . . . . Kills . | . . . . . . . . Allies Corrupted . | . . . . . . . . Allies Melted . | . . . . . . . . Intel | -11 -10 -10 -9 -9 -9 -8 -8 ------- Run | Jun Mat Min Mat Min Exi Min Mat Robot Analysis Total 1 | . . . 1 . . . . Derelict Logs Recovered 1 | . . 1 . . . . . Drone Launches . | . . . . . . . . Drone Recoveries . | . . . . . . . . Exploration | -11 -10 -10 -9 -9 -9 -8 -8 ------------- Run | Jun Mat Min Mat Min Exi Min Mat Turns Passed 2350 | 17 589 241 563 148 120 281 391 Spaces Moved 2140 | 9 403 182 428 168 226 386 338 Core . | . . . . . . . . Treads . | . . . . . . . . Legs 2 | 2 . . . . . . . Wheels 1009 | 7 403 182 417 . . . . Hover 1129 | . . . 11 168 226 386 338 Flight . | . . . . . . . . Fastest Speed 52 | 90 90 90 52 52 52 52 52 Average Speed 72 | 96 90 90 89 52 52 52 66 Slowest Speed 120 | 120 90 90 90 52 52 52 116 Overloaded Moves . | . . . . . . . . Propulsion Burnouts . | . . . . . . . . Robots Hopped . | . . . . . . . . Cave-ins Triggered 1 | . . . 1 . . . . Exploration Rate (%) 36 | 2 53 27 29 32 62 63 22 Regions Visited 7 Branch Regions 4 Pre-discovered Areas . | . . . . . . . . Known Exits Taken 6 | . 1 1 1 1 1 1 . Unknown Exits Taken 1 | 1 . . . . . . . Scrap Searched 3 | . . . . 1 . 2 . Spaces Dug 6 | . . . 6 . . . . Terrain Destroyed 105 | . . 8 49 7 . 8 33 Melee . | . . . . . . . . Projectile . | . . . . . . . . AOE 105 | . . 8 49 7 . 8 33 Terrain Rammed . | . . . . . . . . Walls Destroyed . | . . . . . . . . Machines Disabled . | . . . . . . . . Actions | -11 -10 -10 -9 -9 -9 -8 -8 --------- Run | Jun Mat Min Mat Min Exi Min Mat Total 2638 | 16 536 223 524 219 228 439 453 Wait 207 | . 45 15 11 39 . 35 62 Move 2133 | 8 402 181 427 167 225 385 338 Hop . | . . . . . . . . Pick Up 23 | 4 5 1 8 1 2 1 1 Fast Attach 15 | . 3 1 3 . . 1 7 Attach 9 | 2 1 1 4 1 . . . Detach . | . . . . . . . . Swap 21 | . 3 1 10 2 . 3 2 Drop 25 | 1 4 1 8 . 1 1 9 Fire 169 | 1 60 19 41 4 . 13 31 Melee . | . . . . . . . . Ram . | . . . . . . . . Kick . | . . . . . . . . Crush . | . . . . . . . . Escape Stasis . | . . . . . . . . Rewire . | . . . . . . . . Trap . | . . . . . . . . Miscellaneous 36 | . 13 3 12 5 . . 3 Route ------- -11/Junkyard -10/Materials (discovered 3 exits: *Mat / *Min x2) -10/Mines -9/Materials (discovered 2 exits: *Min x2) -9/Mines -9/Exiles -8/Mines -8/Materials (discovered 1 exit: [*Fac]) History --------- Turn | Location | Event 1 | -11/Junkyard | Upgraded with Propulsion slot (x1) 1 | -11/Junkyard | Upgraded with Utility slot (x1) 1 | -11/Junkyard | Upgraded with Weapon slot (x1) 1 | -11/Junkyard | Discovered new exit (range 1) 18 | -11/Junkyard | Entered Materials 67 | -10/Materials | Discovered new exit (range 7) 209 | -10/Materials | Discovered new exit (range 4) 221 | -10/Materials | Discovered new exit (range 16) 308 | -10/Materials | Build established: Mutant 504 | -10/Materials | Reached level 2 606 | -10/Materials | Identified exit to Mines 607 | -10/Materials | Entered Mines 609 | -10/Mines | Learned 2 Materials zone layouts 768 | -10/Mines | Upgraded with Utility slot (x1) 798 | -10/Mines | Received a Rocket Launcher from a helpful Derelict 806 | -10/Mines | Reached level 3 831 | -10/Mines | Discovered new exit (range 6) 847 | -10/Mines | Identified exit to Materials 848 | -10/Mines | Entered Materials 850 | -9/Materials | Reached level 4 868 | -9/Materials | Upgraded with Propulsion slot (x1) 868 | -9/Materials | Upgraded with Utility slot (x2) 981 | -9/Materials | Identified exit to Mines 1215 | -9/Materials | Reached level 5 1325 | -9/Materials | Crushed by falling debris 1325 | -9/Materials | Core integrity fell below 50% 1375 | -9/Materials | Core integrity fell below 20% 1411 | -9/Materials | Entered Mines 1413 | -9/Mines | Reached level 6 1442 | -9/Mines | Upgraded with Power slot (x1) 1557 | -9/Mines | Deemed a non-threat by the Exiles lab entrance 1557 | -9/Mines | Discovered new exit (range 6) 1559 | -9/Mines | Identified exit to Exiles 1559 | -9/Mines | Entered Exiles 1573 | -9/Exiles | Met 8R-AWN 1581 | -9/Exiles | Met EX-HEX 1597 | -9/Exiles | Met EX-BIN 1603 | -9/Exiles | Aligned with FarCom system 1604 | -9/Exiles | Given EX-Vault access code 1616 | -9/Exiles | Opened EX-Vault 1620 | -9/Exiles | Found Skeleton Box 1628 | -9/Exiles | Found Chronowheel 1640 | -9/Exiles | Warned to stay clear of 0b10 Research branches 1655 | -9/Exiles | Met EX-DEC 1674 | -9/Exiles | Discovered new exit (range 11) 1678 | -9/Exiles | Identified exit to Mines 1679 | -9/Exiles | Left Exiles lab with Chronowheel 1679 | -9/Exiles | Entered Mines 1681 | -8/Mines | Reached level 7 1958 | -8/Mines | Discovered new exit (range 5) 1960 | -8/Mines | Identified exit to Materials 1960 | -8/Mines | Entered Materials 1961 | -8/Materials | Core integrity fell below 50% 1962 | -8/Materials | Reached level 8 1973 | -8/Materials | Upgraded with Propulsion slot (x1) 2078 | -8/Materials | Build established: Scout 2311 | -8/Materials | Discovered new exit (range 15) 2317 | -8/Materials | Core integrity fell below 20% 2343 | -8/Materials | Reached level 9 2352 | -8/Materials | Core destroyed Last Messages --------------- 02330_ The unstable cave ceiling collapses. 02330_ Destroyed Lgt. Nuclear Core. 02332_ The unstable cave ceiling collapses. 02332_ Lgt. Nuclear Core crushed. 02333_ Power failure, Lgt. Nuclear Core shutdown. 02341_ Overheating: Lgt. Nuclear Core damaged (-15). 02342_ Overheating: Imp. Signal Interpreter damaged (-2). 02343_ Overheating: Imp. Hover Unit damaged (-7). 02343_ Overheating: Imp. Light Armor Plating damaged (-67). 02343_ Overheating: Lgt. Nuclear Core damaged (-13). 02343_ Reached level 9. 02343_ G-47 Trooper destroyed. 02345_ Power failure, Lgt. Nuclear Core shutdown. 02345_ Overheating: Energy bleed (-39). 02351_ Overheating: Enh. Autogun damaged (-70). 02351_ Overheating: Structural Scanner damaged (-7). 02351_ Overheating: Imp. Hover Unit damaged (-8). 02351_ Overheating: Imp. Hover Unit damaged (-5). 02352_ Power failure, Lgt. Nuclear Core shutdown. 02352_ Overheating: Core damaged (-150). Map ----- +----------------------------------------------------+ | ????????????????????## ############### ##] | | ????????????????????## ### #### ## | | ????????????????????## # """" !#### ## | | ????????????????????## # """" #### ## ## | | ????????????????????## # """" ]#### ## | | ????????????????????## + ! ####+###+### | | ????????????????????## # """" #### | | ????????????????????## # """" ] #### | | ????????????????????## # """" + + | | ????????????????????## # #### ! | | ????????????????????## ############# | | ????????????????????## ############# ]] | | ????????????????????## ##?????????## ] | | ????????????????????## ##?????????## ] [ | | ????????????????????## # ?????????########## | | ????????????????????## # ?????????########## | | ????????????????????## # ??????????????????? | | ????????????????????## # ??????????????????? | | ????????????????????## # ??????????????????? | | ???????????????????? # + ??????????????????? | | ???????###??????????## ##??????????????????? | | ??????#######?????? ## ## ?????????????????? | | ??????### ## ## ?????????????????? | | ?????### # #;### # ?????????????????? | | ?????## %% m Y # ?????????????????? | | ?????## < *% @ T + ?????????????????? | | ?????## [ # ?????????????????? | | ?????### # ##### # ?????????????????? | | ??????### # # ##### ## ?????????????????? | | ??????##### #????? # ## ?????????????????? | | ??????####?????????? # ##??????????????????? | | ???????????????????? + ##??????????????????? | | ???????????????????? # ?????????????????? | | ???????????????????? # ###?????????????????? | | ????????????????????## ###?????????????????? | | ?????????????????????##+###??????????????????? | | ????????????????????? ??????????????????? | | ?????????????????????????????????????????????? | | ?????????????????????????????????????????????? | | ?????????????????????????????????????????????? | | ?????????????????????????????????????????????? | | ?????????????????????????????????????????????? | | ?????????????????????????????????????????????? | | ?????????????????????????????????????????????? | | ?????????????????????????????????????????????? | | ?????????????????????????????????????????????? | | ?????????????????????????????????????????a???? | | ?????????????????????????????????????????????? | | ?????????????????????????????????????????????? | | ?????????????????????????????????????????????? | +----------------------------------------------------+ Best States ------------- Heat Dissipation 25 Energy Generation 23 Energy Capacity 430 Matter Stores 300 Matter Capacity 300 Sight Range 16 Terrain Scan Density 10 ECM Strength 1 Additional Mass Support 9 Armor Coverage 150 Resistance: KI 15 Resistance: TH 15 Evasion (%) 54 Item Schematics ----------------- None Robot Schematics ------------------ None Fabricated ------------ Nothing Alien Tech Used ----------------- None Achievements -------------- None Challenges ------------ None RPGLIKE | -11 -10 -10 -9 -9 -9 -8 -8 --------- Run | Jun Mat Min Mat Min Exi Min Mat Levels Raised 8 | . 1 1 2 1 . 1 2 XP Earned 15085 | 3000 1730 1525 4160 925 350 1175 2220 XP Spent 12480 | 3000 . 800 3300 3280 . 1000 1100 Upgrades 28 | 6 . 1 3 16 . 1 1 Power Slot 1 | . . . . 1 . . . Propulsion Slot 3 | 1 . . 1 . . . 1 Utility Slot 4 | 1 . 1 2 . . . . Weapon Slot 1 | 1 . . . . . . . Core Integrity 8 | . . . . 8 . . . Inventory Capacity 4 | 3 . . . . . 1 . Melee Accuracy 1 | . . . . 1 . . . KI Resistance % 3 | . . . . 3 . . . TH Resistance % 3 | . . . . 3 . . . Protomatter Created 283 | . 148 17 57 35 . . 26 Integrity Restored 748 | . 276 51 256 105 . . 60 Core 748 | . 276 51 256 105 . . 60 Protomatter Decayed 19 | . . . 19 . . . . Game ------ Seed LinearBackupMallet Manual? 0 Play Time 00:25:21 Cumulative 31.4 hours Start 2024.02.03 @ 00:03:06 End 2024.02.03 @ 00:30:19 Sessions 1 Manual Loads 0 Difficulty Rogue Special Mode Winter2019/RPGLIKE Game No. 60 Rogue 60 Adventurer 0 Explorer 0 Win Type - Total 1 Types 1/0/0/0/0/0/0/0/0 Lore% 27 Gallery% 37 Achievement% 33 Wizard Run 0 Options --------- ASCII 0 Keyboard 0 Movement Mouse Keybinds 1 Fullscreen 2 Font 18/SmallcapsGlow Map View 76x50 Tactical HUD 1 Map Filters SHIFT_HUE(270)|BRIGHTNESS(75) Filters SHIFT_HUE(90)|BRIGHTNESS(125) Steam 1 RUN: 0f8c5db0-654d-4435-b051-3f1d478e9ea4